Cogmind - Beta 9.6 @@@ ROGUE MODE // 2020.06.02 @ 16:04:39 Player: Demise Result: Destroyed by BZ-BZC(z) with Makeshift Sword Performance ------------- Evolutions (3) 1500 Regions Visited (8) 1600 Robots Destroyed (117) 585 Value Destroyed (2852) 2852 Prototype IDs (35) 700 Alien Tech Used (0) 0 Bonus (528) 528 TOTAL SCORE: 7765 Bonus ------- High Alert Combat Kills 63 Follower Combat Kills 37 Aligned with FarCom 300 Met Imprinter 300 Friendly Fire -172 Cogmind --------- Core Integrity 0/700 Matter 300/300 Energy 100/100 System Corruption 0% Temperature Cool (0) Movement Walking (135) Location -7/Zion Parts ------- > --- POWER (2) -------- (None) > --- PROPULSION (3) --- Improved Titanium Leg Makeshift Leg > --- UTILITY (6) ------ Medium Storage Unit Advanced Signal Interpreter 0b10 Decoder Chip [Generic] Melee Analysis Suite Melee Analysis Suite > --- WEAPON (2) ------- Makeshift Hammer Power Maul > --- INVENTORY (8) ---- Light Nuclear Core Carbon-fiber Leg Makeshift Flight Unit Improved Medium Armor Plating Hacking Suite Hacking Suite Field Lobotomy Kit Plasma Cutter Peak State ------------ > --- POWER ------------ Light Deuterium Engine Light Angular Momentum Engine > --- PROPULSION ------- Xenon Bombardment Thruster Xenon Bombardment Thruster Xenon Bombardment Thruster > --- UTILITY ---------- Medium Storage Unit Advanced Weight Redist. System Advanced Signal Interpreter 0b10 Decoder Chip [Generic] Improved Melee Analysis Suite Phasing AFG > --- WEAPON ----------- Plasma Cutter > --- INVENTORY -------- Humpback Transmission Jammer Hacking Suite Hacking Suite Precision Grenade Launcher Field Lobotomy Kit Spear [Rating: 54] Favorites ----------- Power Light Ion Engine Engine Light Ion Engine Power Core Light Nuclear Core Propulsion Xenon Bombardment Thruster Treads Light Treads Leg Makeshift Leg Wheel Wheel Hover Unit Gravmag System Flight Unit Xenon Bombardment Thruster Utility High-capacity Storage Unit Device Advanced Weight Redist. System Storage High-capacity Storage Unit Processor Targeting Computer Hackware Hacking Suite Protection Hardened Medium Armor Plating Weapon Enhanced Autogun Energy Gun Medium Laser Energy Cannon Beam Cannon Ballistic Gun Enhanced Autogun Ballistic Cannon Light Cannon Launcher Grenade Launcher Special Weapon Plasma Cutter Impact Weapon Power Maul Slashing Weapon Axe Piercing Weapon Makeshift Spear Build | -11 -10 -10 -10 -9 -8 -7 -7 -7 ------- Run | Scr Mat Min Exi Min Mat Fac Low Zio Slots Evolved 6 | . . . . . 4 2 . . Power 1 | . . . . . . 1 . . Propulsion 1 | . . . . . . 1 . . Utility 4 | . . . . . 4 . . . Weapon . | . . . . . . . . . Parts Attached 148 | 6 16 . 1 3 33 55 . 34 Power 25 | . 2 . . 1 6 8 . 8 Engine 18 | . 2 . . 1 4 7 . 4 Core 7 | . . . . . 2 1 . 4 Reactor . | . . . . . . . . . Propulsion 40 | 5 4 . . . 5 14 . 12 Treads 9 | . 2 . . . 3 4 . . Leg 9 | . . . . . . . . 9 Wheel 10 | 5 2 . . . 2 1 . . Hover 1 | . . . . . . . . 1 Flight 11 | . . . . . . 9 . 2 Utility 39 | 1 3 . 1 . 15 13 . 6 Device 10 | 1 . . . . 4 3 . 2 Storage 6 | . 2 . 1 . 2 1 . . Processor 14 | . 1 . . . 5 5 . 3 Hackware 1 | . . . . . . 1 . . Protection 8 | . . . . . 4 3 . 1 Artifact . | . . . . . . . . . Weapon 44 | . 7 . . 2 7 20 . 8 Energy Gun 6 | . 2 . . . 2 2 . . Energy Cannon 4 | . 1 . . . . 3 . . Ballistic Gun 16 | . 2 . . 2 5 6 . 1 Ballistic Cannon 1 | . 1 . . . . . . . Launcher 4 | . 1 . . . . 2 . 1 Special Weapon 4 | . . . . . . 3 . 1 Impact Weapon 2 | . . . . . . . . 2 Slashing Weapon 3 | . . . . . . 3 . . Piercing Weapon 4 | . . . . . . 1 . 3 Special Melee Weapon . | . . . . . . . . . Unidentified Prototypes 9 | . . . . . 1 7 . 1 Parts Lost 48 | . 9 . . . 13 7 1 18 Power 11 | . 2 . . . 2 2 . 5 Propulsion 16 | . 2 . . . 3 3 . 8 Utility 8 | . . . . . 2 2 1 3 Weapon 13 | . 5 . . . 6 . . 2 Highest Loss Streak 7 | . 3 . . . 5 2 1 7 Average Slot Usage (%) 89 | . 89 100 100 100 92 90 91 79 Engine 9 | . 12 14 14 14 6 10 15 6 Core 1 | . . . . . 2 2 . 1 Treads 6 | . 13 14 14 14 8 4 . . Leg 1 | . . . . . . . . 8 Wheel 5 | . 8 14 14 14 7 3 . . Flight 5 | . . . . . . 10 23 9 Device 4 | . 1 . . . 5 6 7 4 Storage 14 | . 14 14 14 14 19 15 7 7 Processor 18 | . 12 14 14 14 19 17 22 24 Protection 3 | . . . . . 4 4 7 2 Energy Gun 1 | . 9 . . . . . . . Energy Cannon 1 | . 1 14 14 1 . . . . Ballistic Gun 8 | . 10 . . 25 16 6 . 1 Ballistic Cannon 1 | . 1 14 14 1 . . . . Piercing Weapon 1 | . . . . . . 1 . 6 Naked Turns . | . . . . . . . . . Heaviest Build 128 | 11 41 41 41 41 117 128 30 33 Greatest Support 60 | 32 20 10 10 10 20 30 30 60 Greatest Overweight (x) 24 | . 4 4 4 4 24 10 . 6 Average Overweight (x) 2 | . . 4 4 3 4 2 . . Largest Inventory Capacity 28 | 6 12 12 12 12 28 28 8 8 Average Capacity 15 | 6 9 12 12 12 21 18 8 8 Most Carried 28 | 6 12 12 12 12 28 28 8 8 Average Carried 14 | 5 8 12 11 12 19 18 8 7 Final Capacity 28 | 6 12 12 12 12 28 8 8 8 Final Carried 28 | 6 12 12 12 12 28 8 8 8 Class Distribution -------------------- 41% | Mutant 27% | Scavenger-Mutant 26% | Hauler-Mutant Dominant Class ---------------- Mutant | -10/Materials Mutant | -10/Mines Mutant | -10/Exiles Scavenger-Mutant | -9/Mines Scavenger-Mutant | -8/Materials Hauler-Mutant | -7/Factory Mutant | -7/Lower Caves Scavenger-Mutant | -7/Zion Resources | -11 -10 -10 -10 -9 -8 -7 -7 -7 ----------- Run | Scr Mat Min Exi Min Mat Fac Low Zio Matter Collected 2706 | 289 346 . . 64 807 851 10 339 Remotely . | . . . . . . . . . Salvage Created 3976 | 229 616 . . 36 1306 1427 30 332 Parts 254 | 13 43 . . 5 78 94 1 20 Haulers Intercepted 13 | . 2 . . . 4 7 . . Recyclers Shooed 1 | . . . . . 1 . . . Parts Field Recycled . | . . . . . . . . . Retrieved Matter . | . . . . . . . . . Parts Self-Destructed . | . . . . . . . . . Prevented . | . . . . . . . . . Kills | -11 -10 -10 -10 -9 -8 -7 -7 -7 ------- Run | Scr Mat Min Exi Min Mat Fac Low Zio Combat Hostiles Destroyed 67 | . 19 . . 3 26 16 . 3 Melee 4 | . . . . . . 2 . 2 Guns 42 | . 10 . . . 25 7 . . Cannons 4 | . . . . 3 . 1 . . AOE 16 | . 9 . . . 1 5 . 1 Classes Destroyed 16 | 3 6 . . . 3 2 . 2 Worker 6 | 2 1 . . . 1 2 . . Builder 3 | . 1 . . . . 2 . . Tunneler 7 | 5 . . . . 1 1 . . Hauler 13 | . 2 . . . 4 7 . . Recycler 5 | 1 . . . . 1 3 . . Operator 2 | . 1 . . . . 1 . . Watcher 6 | . 2 . . . 2 2 . . Swarmer 20 | . 6 . . 3 7 4 . . Grunt 24 | . 13 . . . 9 2 . . Brawler 1 | . . . . . 1 . . . Duelist 1 | . . . . . . 1 . . Sentry 8 | . . . . . 6 2 . . Hunter 3 | . . . . . 3 . . . Programmer 7 | . . . . . . 7 . . Zionite 6 | . . . . . . . . 6 Decomposer 1 | . . . . . . . 1 . Thug 1 | . . . . . . . . 1 Butcher 1 | . . . . . . . . 1 Mutant 2 | . . . . . . . . 2 Best Kill Streak 5 | 2 5 . . 3 4 4 . 3 Combat Bots Only 5 | . 5 . . 3 4 4 . 1 Max Kills in Single Turn 4 | 1 2 . . 1 2 4 1 1 Gunslinging 1 | . . . . . 1 . . . Exploded 4 | . 2 . . . 1 4 . 1 Melee 1 | . . . . . . 1 . 1 Uniques/NPCs Destroyed 1 | . . . . . . . . 1 Imprinter (-7/Zion) Combat | -11 -10 -10 -10 -9 -8 -7 -7 -7 -------- Run | Scr Mat Min Exi Min Mat Fac Low Zio Damage Taken 6201 | . 1015 . . 132 2101 1127 52 1774 Core 1319 | . 185 . . 24 392 84 . 634 Absorbed by Shields . | . . . . . . . . . Core Remaining (%) 48 | 100 . . . 16 28 . . . Volleys Fired 332 | 29 97 . . 6 119 71 5 5 Largest 2 | 2 2 . . 2 2 2 1 1 Hottest 95 | 70 95 . . 95 88 94 20 36 Shots Fired 580 | 57 148 . . 12 234 119 5 5 Gun 522 | 57 125 . . . 234 106 . . Cannon 26 | . 10 . . 12 . 4 . . Launcher 17 | . 13 . . . . 1 . 3 Special 15 | . . . . . . 8 5 2 Kinetic 432 | 29 86 . . 6 212 99 . . Thermal 118 | 28 49 . . 6 22 8 5 . Explosive 17 | . 13 . . . . 1 . 3 Electromagnetic 11 | . . . . . . 11 . . Robot Hit Streak 19 | 7 15 . . 3 17 19 2 6 Robot Miss Streak 5 | 3 3 . . 5 5 4 3 . Penetration Max . | . . . . . . . . . Secondary Targets 5 | . . . . . 5 . . . Max Gunslinging Chain 1 | . . . . . 1 . . . Shots Hit Robots 442 | 34 110 . . 4 167 102 2 23 Core Hits 208 | 12 47 . . 3 70 55 1 20 Critical Hits 5 | . . . . . 2 2 . 1 Critical Kills . | . . . . . . . . . Critical Parts Destroyed 5 | . . . . . 2 2 . 1 Melee Attacks 199 | . . . . . . 71 . 128 Impact 24 | . . . . . . . . 24 Slashing 61 | . . . . . . 61 . . Piercing 114 | . . . . . . 10 . 104 Sneak Attacks 12 | . . . . . . 11 . 1 Combat Hostiles . | . . . . . . . . . Follow-up Attacks 2 | . . . . . . . . 2 Damage Inflicted 9235 | 372 1700 . . 50 2565 3511 21 1016 Guns 4799 | 372 864 . . . 2360 1203 . . Cannons 205 | . 84 . . 50 . 71 . . Explosions 1911 | . 752 . . . 179 527 . 453 Melee 2189 | . . . . . . 1626 . 563 Ramming 37 | . . . . . 26 11 . . Kinetic 3961 | 144 540 . . 15 2093 1169 . . Thermal 1305 | 228 408 . . 35 267 346 21 . Explosive 1638 | . 752 . . . 179 254 . 453 Electromagnetic 105 | . . . . . . 105 . . Impact . | . . . . . . . . . Slashing 1203 | . . . . . . 1203 . . Piercing 986 | . . . . . . 423 . 563 Highest Corruption 2 | . . . . . 1 2 2 2 Average Corruption 1 | . . . . . 1 2 2 2 Corruption Purged . | . . . . . . . . . Effects 27 | . . . . . 12 13 2 . Message Errors 12 | . . . . . 6 6 . . Heat Flow Errors 3 | . . . . . . 1 2 . Energy Discharges 5 | . . . . . 2 3 . . Data Loss (minor) 5 | . . . . . 2 3 . . Targeting Errors 2 | . . . . . 2 . . . Overload Shots . | . . . . . . . . . Overflow Damage 460 | . 8 . . . 33 320 9 90 Projectiles 9 | . . . . . . . 9 . Explosions 158 | . 8 . . . 33 41 . 76 Melee 293 | . . . . . . 279 . 14 Knockbacks 2 | . 2 . . . . . . . Impact . | . . . . . . . . . Kinetic 2 | . 2 . . . . . . . Secondary . | . . . . . . . . . Self-Inflicted Damage 254 | . 37 . . . 77 5 . 135 Shots 7 | . 3 . . . 1 . . 3 Rammed 3 | . . . . . 2 1 . . Targets Rammed 3 | . . . . . 2 1 . . Kicked . | . . . . . . . . . Crushed . | . . . . . . . . . Highest Temperature 522 | 180 278 . . 198 144 522 329 70 Average Temperature 76 | 62 70 . . 102 27 89 158 39 Received Heat Transfer 1539 | . 474 . . . 540 180 9 336 Effects 7 | . . . . . . 7 . . Shutdowns 1 | . . . . . . 1 . . Interference 3 | . . . . . . 3 . . Damage (major) 3 | . . . . . . 3 . . Siege Activations . | . . . . . . . . . Robots Corrupted . | . . . . . . . . . Combat Hostiles . | . . . . . . . . . Parts Fried . | . . . . . . . . . Impact Corruptions . | . . . . . . . . . Robots Melted 1 | . . . . . . 1 . . Combat Hostiles 1 | . . . . . . 1 . . Parts Melted 10 | 1 1 . . . 1 7 . . Heat Transferred 2953 | 666 1125 . . 74 592 422 74 . Parts Sabotaged . | . . . . . . . . . Parts Stolen . | . . . . . . . . . Parts Stripped . | . . . . . . . . . Power Chain Reactions . | . . . . . . . . . Missiles Intercepted . | . . . . . . . . . Alert | -11 -10 -10 -10 -9 -8 -7 -7 -7 ------- Run | Scr Mat Min Exi Min Mat Fac Low Zio Peak Influence 788 | 40 342 121 . 70 443 788 . . Average Influence 212 | 20 174 121 . 66 210 264 . . Maximum Alert Level 3 | . 1 . . . 2 3 . . Low Security (%) 49 | 100 56 100 . 100 44 39 . . Level 1 42 | . 43 . . . 44 51 . . Level 2 3 | . . . . . 10 . . . Level 3 3 | . . . . . . 9 . . Level 4 . | . . . . . . . . . Level 5 . | . . . . . . . . . High Security . | . . . . . . . . . Max Security . | . . . . . . . . . Squads Dispatched 25 | . 4 . . . 7 14 . . Investigation 12 | . 3 . . . 4 5 . . Extermination 6 | . . . . . . 6 . . Reinforcement 7 | . 1 . . . 3 3 . . Assault . | . . . . . . . . . Garrison . | . . . . . . . . . Intercept . | . . . . . . . . . Construction Impeded 1 | . . . . . 1 . . . Haulers Reinforced 2 | . . . . . . 2 . . Stealth | -11 -10 -10 -10 -9 -8 -7 -7 -7 --------- Run | Scr Mat Min Exi Min Mat Fac Low Zio Distress Signals 5 | . 2 . . . . 3 . . Communications Jammed . | . . . . . . . . . Distress Signals . | . . . . . . . . . Times Spotted 165 | . 35 . . 3 42 44 6 35 Peak Tracking Total 8 | . 8 . . 3 5 8 6 8 Tactical Retreats 20 | . 2 . . . 7 7 . 4 Traps | -11 -10 -10 -10 -9 -8 -7 -7 -7 ------- Run | Scr Mat Min Exi Min Mat Fac Low Zio Traps Triggered 8 | . 2 . . . 2 4 . . Indirectly . | . . . . . . . . . Trap Hack Attempts . | . . . . . . . . . Triggered . | . . . . . . . . . Disarmed . | . . . . . . . . . Reprogrammed . | . . . . . . . . . Reused . | . . . . . . . . . Traps Extracted . | . . . . . . . . . Installed . | . . . . . . . . . Triggered . | . . . . . . . . . Machines | -11 -10 -10 -10 -9 -8 -7 -7 -7 ---------- Run | Scr Mat Min Exi Min Mat Fac Low Zio Machines Disabled 5 | . . . . . 2 2 . 1 Max in Single Turn 2 | . . . . . 2 2 . 1 Garrison Access 2 | . . . . . . 2 . . Machines Sabotaged . | . . . . . . . . . Garrisons Compromised . | . . . . . . . . . Overloaded Fab Kills . | . . . . . . . . . Fab Network Shutdowns 1 | . . . . . . 1 . . Hacking | -11 -10 -10 -10 -9 -8 -7 -7 -7 --------- Run | Scr Mat Min Exi Min Mat Fac Low Zio Machines Accessed 31 | . 8 . 2 . 6 15 . . Terminals 19 | . 7 . . . 5 7 . . Fabricators 3 | . . . . . . 3 . . Repair Stations 1 | . . . . . . 1 . . Recycling Units 2 | . 1 . . . 1 . . . Scanalyzers 2 | . . . . . . 2 . . Garrison Access 2 | . . . . . . 2 . . Total Hacks 85 | . 23 . 2 . 17 43 . . Successful 47 | . 15 . 2 . 5 25 . . Failed 38 | . 8 . . . 12 18 . . Catastrophic 9 | . . . . . 6 3 . . Database Lockouts . | . . . . . . . . . Manual 53 | . 19 . 1 . 13 18 . 2 Terminals 59 | . 22 . . . 16 21 . . Fabricators 12 | . . . . . . 12 . . Repair Stations 2 | . . . . . . 2 . . Recycling Units 2 | . 1 . . . 1 . . . Scanalyzers 5 | . . . . . . 5 . . Garrison Access 3 | . . . . . . 3 . . Terminal Hacks 11 | . 5 . 2 . 2 2 . . Record 1 | . . . 1 . . . . . Part Schematic 4 | . 2 . . . . 2 . . Prototype ID Bank 2 | . 1 . . . 1 . . . Branch Access Points 1 | . . . . . 1 . . . Hauler Manifests 1 | . 1 . . . . . . . Zone Layout 1 | . 1 . . . . . . . EX-Prototype ID Bank 1 | . . . 1 . . . . . Fabricator Hacks 8 | . . . . . . 8 . . Load Schematic 3 | . . . . . . 3 . . Build 5 | . . . . . . 5 . . Repair Station Hacks 2 | . . . . . . 2 . . Scan Component 1 | . . . . . . 1 . . Repair 1 | . . . . . . 1 . . Recycling Unit Hacks 2 | . 1 . . . 1 . . . Report Inventory 1 | . . . . . 1 . . . Retrieve Components 1 | . 1 . . . . . . . Scanalyzer 3 | . . . . . . 3 . . Insert Component 2 | . . . . . . 2 . . Analyze 1 | . . . . . . 1 . . Garrison Access Hacks 2 | . . . . . . 2 . . Seal Access 2 | . . . . . . 2 . . Unauthorized Hacks 19 | . 9 . . . 2 8 . . Terminals 18 | . 9 . . . 2 7 . . Track 5 | . 4 . . . . 1 . . Assimilate 1 | . . . . . . 1 . . Botnet 12 | . 5 . . . 2 5 . . Fabricators 1 | . . . . . . 1 . . Siphon 1 | . . . . . . 1 . . Repair Stations . | . . . . . . . . . Recycling Units . | . . . . . . . . . Scanalyzers . | . . . . . . . . . Garrison Access . | . . . . . . . . . Data Cores Recovered . | . . . . . . . . . Used . | . . . . . . . . . Hacking Detections 24 | . 6 . . . 5 13 . . Full Trace Events 11 | . 2 . . . 4 5 . . Feedback Events 1 | . . . . . . 1 . . Hackware Fried 1 | . . . . . . 1 . . Feedback Blocked . | . . . . . . . . . Robot Schematics Acquired . | . . . . . . . . . Robots Built . | . . . . . . . . . Matter . | . . . . . . . . . Time . | . . . . . . . . . Total Robot Build Rating . | . . . . . . . . . Part Schematics Acquired 5 | . 2 . . . . 3 . . Parts Built 2 | . . . . . . 2 . . Matter 292 | . . . . . . 292 . . Time 72 | . . . . . . 72 . . Total Part Build Rating 6 | . . . . . . 6 . . Parts Repaired 1 | . . . . . . 1 . . Time 38 | . . . . . . 38 . . Parts Recycled . | . . . . . . . . . Recycled Matter . | . . . . . . . . . Retrieved Matter . | . . . . . . . . . Retrieved Components . | . . . . . . . . . Parts Scanalyzed 2 | . . . . . . 2 . . Part Schematics Acquired 1 | . . . . . . 1 . . Parts Damaged . | . . . . . . . . . Bothacking | -11 -10 -10 -10 -9 -8 -7 -7 -7 ------------ Run | Scr Mat Min Exi Min Mat Fac Low Zio Used RIF Installer . | . . . . . . . . . Robots Hacked . | . . . . . . . . . Non-combat . | . . . . . . . . . Combat . | . . . . . . . . . Robot Hacks Applied . | . . . . . . . . . Relay Couplers Released . | . . . . . . . . . Robots Rewired . | . . . . . . . . . Allies Hacked 1 | . . . . . . 1 . . Hacks Repelled . | . . . . . . . . . Allies | -11 -10 -10 -10 -9 -8 -7 -7 -7 -------- Run | Scr Mat Min Exi Min Mat Fac Low Zio Total Allies 8 | . . . . . . 1 . 7 Largest Group 3 | . . . . . . 1 1 3 Highest-Rated Group 188 | . . . . . . 26 21 188 Highest-Rated Ally 94 | . . . . . . 26 21 94 Total Orders . | . . . . . . . . . Ally Attacks 161 | . . . . . . . . 161 Total Damage 4486 | . . . . . . . . 4486 Kills 46 | . . . . . . . . 46 Allies Corrupted . | . . . . . . . . . Allies Melted . | . . . . . . . . . Field Lobotomies 2 | . . . . . . . . 2 Intel | -11 -10 -10 -10 -9 -8 -7 -7 -7 ------- Run | Scr Mat Min Exi Min Mat Fac Low Zio Robot Analysis Total . | . . . . . . . . . Derelict Logs Recovered 5 | . . 1 . 1 . . . 3 Drone Launches . | . . . . . . . . . Drone Recoveries . | . . . . . . . . . Exploration | -11 -10 -10 -10 -9 -8 -7 -7 -7 ------------- Run | Scr Mat Min Exi Min Mat Fac Low Zio Turns Passed 9420 | 188 1185 244 343 223 2574 2731 115 1817 Spaces Moved 6544 | 75 697 204 279 176 1056 2172 191 1694 Core 51 | . . . . . 2 . . 49 Treads 843 | . 278 . . . 471 94 . . Legs 496 | . . . . . . . . 496 Wheels 2211 | 75 419 204 279 176 583 475 . . Hover 37 | . . . . . . . . 37 Flight 2906 | . . . . . . 1603 191 1112 Fastest Speed 34 | 80 80 120 120 110 110 34 34 34 Average Speed 109 | 88 124 120 120 110 188 89 34 86 Slowest Speed 1250 | 100 200 120 120 120 1250 290 34 350 Overloaded Moves . | . . . . . . . . . Propulsion Burnouts . | . . . . . . . . . Robots Hopped 7 | . . . . . . 7 . . Cave-ins Triggered . | . . . . . . . . . Exploration Rate (%) 54 | 6 89 43 69 43 71 51 25 89 Regions Visited 8 Branch Regions 5 Pre-discovered Areas 2 | . . . 1 . . . . 1 Known Exits Taken 2 | . . . . . . 1 1 . Unknown Exits Taken 6 | 1 1 1 1 1 1 . . . Scrap Searched 6 | . . 1 . . . . . 5 Spaces Dug 50 | . . . . . . 41 . 9 Terrain Destroyed 146 | . 45 . . . 23 69 . 9 Melee 50 | . . . . . . 41 . 9 Projectile . | . . . . . . . . . AOE 96 | . 45 . . . 23 28 . . Actions | -11 -10 -10 -10 -9 -8 -7 -7 -7 --------- Run | Scr Mat Min Exi Min Mat Fac Low Zio Total 8077 | 145 882 203 291 193 1482 2760 230 1891 Wait 656 | 30 53 . . 6 212 293 35 27 Move 6525 | 74 696 203 278 175 1055 2160 190 1694 Hop 4 | . . . . . . 4 . . Pick Up 73 | 2 11 . 5 . 36 17 . 2 Fast Attach 77 | 3 8 . . 2 16 26 . 22 Attach 33 | 2 5 . . . 11 12 . 3 Detach 19 | . 2 . . . 4 11 . 2 Swap 38 | 1 3 . 1 1 6 17 . 9 Drop 107 | 4 7 . 7 3 21 51 . 14 Fire 332 | 29 97 . . 6 119 71 5 5 Melee 184 | . . . . . . 71 . 113 Ram 1 | . . . . . . 1 . . Kick . | . . . . . . . . . Crush 2 | . . . . . 2 . . . Escape Stasis 26 | . . . . . . 26 . . Rewire . | . . . . . . . . . Trap . | . . . . . . . . . Miscellaneous . | . . . . . . . . . Route ------- -11/Scrapyard -10/Materials (discovered 4 exits: *Mat x2 / [*Min x2]) -10/Mines (discovered 2 exits: Mat / *Exi) -10/Exiles -9/Mines -8/Materials (discovered 2 exits: *Fac x2) -7/Factory (discovered 4 exits: *Fac / [*Sto] / *Low x2) -7/Lower Caves -7/Zion (discovered 1 exit: *Pro) History --------- Turn | Location | Event 18 | -11/Scrapyard | Discovered new exit (range 3) 189 | -11/Scrapyard | Entered Materials 305 | -10/Materials | Build established: Mutant 340 | -10/Materials | Discovered new exit (range 8) 482 | -10/Materials | Discovered new exit (range 14) 777 | -10/Materials | Discovered new exit (range 10) 840 | -10/Materials | Lost 3 parts (1p1n1w) 1083 | -10/Materials | Discovered new exit (range 9) 1101 | -10/Materials | Core integrity fell below 50% 1374 | -10/Materials | Entered Mines 1437 | -10/Mines | Identified exit to Materials 1611 | -10/Mines | Deemed a non-threat by the Exiles lab entrance 1612 | -10/Mines | Discovered new exit (range 5) 1618 | -10/Mines | Entered Exiles 1661 | -10/Exiles | Met 8R-AWN 1681 | -10/Exiles | Met EX-HEX 1714 | -10/Exiles | Met EX-BIN 1727 | -10/Exiles | Aligned with FarCom system 1728 | -10/Exiles | Given EX-Vault access code 1756 | -10/Exiles | Opened EX-Vault 1764 | -10/Exiles | Found Field Lobotomy Kit 1803 | -10/Exiles | Warned to stay clear of 0b10 Research branches 1837 | -10/Exiles | Met EX-DEC 1908 | -10/Exiles | Learned location of Zion (-7) 1951 | -10/Exiles | Discovered new exit (range 10) 1961 | -10/Exiles | Left Exiles lab with Field Lobotomy Kit 1961 | -10/Exiles | Entered Mines 1970 | -9/Mines | Core integrity fell below 20% 1988 | -9/Mines | Met a Derelict bent on vengeance 2175 | -9/Mines | Learned Materials stockpile data 2178 | -9/Mines | Discovered new exit (range 3) 2184 | -9/Mines | Entered Materials 2184 | -8/Materials | Evolved 4 slots: Utility x4 2552 | -8/Materials | Build established: Scavenger-Mutant 3084 | -8/Materials | Lost 5 parts (1p1n1u2w) 3439 | -8/Materials | Discovered new exit (range 17) 4137 | -8/Materials | Core integrity fell below 50% 4355 | -8/Materials | Build established: Hauler-Mutant 4614 | -8/Materials | Discovered new exit (range 14) 4758 | -8/Materials | Entered Factory 4758 | -7/Factory | Evolved 2 slots: Power x1, Propulsion x1 5169 | -7/Factory | Discovered new exit (range 15) 6596 | -7/Factory | Repaired Transmission Jammer 6665 | -7/Factory | Hacking Suite fried by hacking feedback 6690 | -7/Factory | Discovered new exit (range 4) 6691 | -7/Factory | Identified exit to Factory 6859 | -7/Factory | Discovered new exit (range 5) 6863 | -7/Factory | Identified exit to Lower Caves 6964 | -7/Factory | Build established: Mutant 7018 | -7/Factory | Discovered exit to Lower Caves (range 19) 7224 | -7/Factory | Fabricated Hacking Suite (x1) 7236 | -7/Factory | Local fabrication network quarantined 7261 | -7/Factory | Fabricated Hacking Suite (x1) 7489 | -7/Factory | Entered Lower Caves 7489 | -7/Lower Caves | Accompanied by 1 ally 7602 | -7/Lower Caves | A Derelict revealed a hidden shortcut to a safe place 7604 | -7/Lower Caves | Identified exit to Zion 7604 | -7/Lower Caves | Entered Zion 7631 | -7/Zion | Discovered new exit (range 7) 7635 | -7/Zion | Identified exit to Proximity Caves 7665 | -7/Zion | System corruption cleaned by Quarantine Array 7689 | -7/Zion | Gained Derelict followers 7696 | -7/Zion | Learned Factory stockpile data 7732 | -7/Zion | Learned Factory terminal intel 7764 | -7/Zion | Found Prototype Device 7764 | -7/Zion | Identified Phasing AFG 7814 | -7/Zion | Given A8's code to call for help 7991 | -7/Zion | Rebuked by Imprinter 8312 | -7/Zion | Attempted to imprint without authorization 8312 | -7/Zion | Attacked by Zionites 8332 | -7/Zion | Assimilated J1-947(M) with FLK Orb 8335 | -7/Zion | Assimilated FE-TXI(M) with FLK Orb 8360 | -7/Zion | Lost 7 parts (2p3n1u1w) 8624 | -7/Zion | Core integrity fell below 50% 8670 | -7/Zion | Enhanced Grunt warped into view, answering call for help 8674 | -7/Zion | Enhanced Grunt warped into view, answering call for help 8681 | -7/Zion | Core integrity fell below 20% 8712 | -7/Zion | Lost 6 parts (2p3n1w) 8794 | -7/Zion | Build established: Scavenger-Mutant 9421 | -7/Zion | Destroyed by BZ-BZC(z) with Makeshift Sword Last Messages --------------- 08767_ Acquired Mak. Leg. 08779_ Acquired 50 matter. 08782_ XL-CWB(z) destroyed. 08783_ JD-ZWU(z) destroyed. 08849_ YK-M9Q(z) plays with the Twisted Machinery. 08858_ YK-M9Q(z) destroyed. 08986_ Dropped Carbon-fiber Leg. 08987_ Acquired 10 matter. 09028_ Dropped Mak. Spear. 09028_ Acquired Power Maul. 09030_ Acquired 8 matter. 09037_ Acquired 2 matter. 09038_ Dropped Mak. Leg. 09250_ Dropped Mak. Spear. 09250_ Acquired Mak. Hammer. 09266_ Acquired 10 matter. 09397_ M4-JTK(z) pulls a Mak. Hammer out of the Twisted Machinery. 09399_ M4-JTK(z) destroyed. 09415_ LG-1IU(z) destroyed. 09420_ U3-81D(z) destroyed. Map ----- +----------------------------------------------------+ | ???????????????????????????????????????????##"" " | | ???????????????????????????????????????????#" ! | | ?????????????????????????????????"##???????#"" "" | | ????????????????????##??????????"#"#""?????#### # | | ???????????????????##"##???????#"""""""????# | | #####???????????###?"""###?"####" """##### | | #"#"#???????????#""##""""##"""##" """#""""" | | #""###?????????##""""" """"""""" ""#"#""""## # | | """#"#?????????#"" """" """" ""###"" """" | | """###########" """ """"" "#"""" | | " ##"" """""" """"" | | " ## ## #?#"" """"" """ | | " " # # ###""" """" | | " " """ #""##" """ """ " | | " """ #""""" """" | | " """ "" """ """"""" """" | | # # "" """"""""""""" """ """ | | ## ## ""##""#"""" """ """ | | " """#####"#"" z | | "" "" """ ""##"###"""" | | """ "" "#"#""#"""" | | " "" "" ""#"""""""" """""""" " | | "" """="""""" = """"""""" " "" | | ! *g/ !%/% " """"" | | ! ! g = *z " """" | | " ! @ """ | | "" """""""" "" """""" """ | | "" """"""" """"""""""" """" ! " | | ""%%* """""" """""""##"#"#"""""""""" !%! "" | | "" """"" """#"##"#"####""""##"#" ! "" | | "###""" ""####?####??#######"""" " | | ""#"""""""#????????????????##"""" """ " | | """##"#####?????????????????##""" """ " | | """"##"???????????????????????#""" """ " | | """"##?????????????????????????##"" """ " | | """""##?????????????????????????#" "" | | """ ""#???????????????????????###" "" | | "#???????????????????????#""" | | "#???????????????????????#"" | | ""#???????????????????????##" " | | " " ""#????????????????????????#"" "" | | " " ""##???????????????????????##"" """" | | " " ""#????????????????????????#""" " """#" | | ""#????????????????????????##"" """"""" | | "" ""#???????????????????????###"" """""" | | "" "##???????????????????????#"" " """" | | "" ""#???????????????????????#" " """" | | "" ""#???????????????????????#"" """"" | | " "##??????????????????????#### """" | | ""#????????????????????????# """ | +----------------------------------------------------+ Best States ------------- Heat Dissipation 53 Energy Generation 31 Energy Capacity 350 Matter Stores 300 Matter Capacity 300 Sight Range 20 Terrain Scan Range 16 Terrain Scan Density 10 Jamming Range 8 Additional Mass Support 9 Armor Coverage 225 Weapon Shielding 66 Evasion (%) 63 Targeting Accuracy 10 Melee Accuracy 10 Target Analysis 5 Recoil Reduction 2 Offensive Hacking 10 Item Schematics ----------------- Hcp. Storage Unit | -10/Materials | Hacked Hcp. Matter Pod | -10/Materials | Hacked Humpback | -7/Factory | Scanalyzed Xenon Bombardment Thruster | -7/Factory | Hacked Hacking Suite | -7/Factory | Hacked Robot Schematics ------------------ None Fabricated ------------ Hacking Suite | x1 | -7/Factory Hacking Suite | x1 | -7/Factory Alien Tech Used ----------------- None Achievements -------------- None Challenges ------------ None Game ------ Seed OmegaIntegrityTreads Manual? 0 Play Time 01:35:09 Cumulative 216.6 hours Start 2020.06.02 @ 14:28:24 End 2020.06.02 @ 16:04:39 Sessions 1 Manual Loads 0 Difficulty Rogue Special Mode None Game No. 278 Rogue 267 Adventurer 11 Explorer 0 Win Type - Total 0 Types 0/0/0/0/0/0/0 Lore% 52 Gallery% 66 Achievement% 45 Wizard Run 0 Options --------- ASCII 0 Keyboard 1 Movement Numpad Keybinds 0 Fullscreen 1 Font 12/Terminus Map View 83x54 Tactical HUD 1 Map Filters NONE Filters NONE Steam 1 RUN: 64d2372c-5414-4647-8c18-f8e3d7e59130